bitfinex-derivatives/quotes_SOLF0:USTF0_20241203
["timestamp","ask_amount","ask_price","bid_price","bid_amount"]
[1733235573713,33.85881966,219.39,219.17,5.3299]
[1733235573918,33.85881966,219.35,219.17,5.3299]
[1733235574515,33.85881966,219.35,219.17,10.1899]
[1733235575417,33.85881966,219.31,219.17,5.3299]
[1733235575618,33.85881966,219.31,219.17,2.5741]
[1733235576324,33.85881966,219.31,219.16,4.86]
[1733235576520,2.5935,219.3,219.16,4.86]
[1733235576723,5.3543,219.3,219.16,4.86]
[1733235577126,2.2806,219.23,219.13,2.7998]
[1733235577524,33.85881966,219.27,219.13,2.7998]
[1733235578221,2.2805,219.24,219.17,2.2812]
[1733235578730,33.85881966,219.27,219.13,2.7998]
[1733235579022,33.85881966,219.27,219.17,2.2811]
[1733235579526,33.85881966,219.27,219.13,2.7998]
[1733235581021,33.85881966,219.27,219.1,4.86]
[1733235581421,33.85881966,219.27,219.15,2.2814]
[1733235581422,2.2805,219.24,219.15,2.2814]
[1733235581621,21.11989035,219.25,219.1,4.86]
[1733235582431,21.11989035,219.25,219.09,62.86111657]
[1733235582432,23.40029035,219.25,219.09,62.86111657]
[1733235582635,21.11989035,219.25,219.09,62.86111657]
[1733235583023,23.40029035,219.25,219.18,2.281]
[1733235583224,21.11989035,219.25,219.09,62.86111657]
[1733235583623,21.11989035,219.29,219.1,21.11989035]
[1733235583827,21.11989035,219.25,219.09,62.86111657]
[1733235584728,21.11989035,219.25,219.06,25.97989035]
[1733235585031,21.11989035,219.21,219.05,2.8559]
[1733235585531,21.11989035,219.21,219.05,7.7159]
[1733235586035,2.2813,219.16,219.05,2.8559]
[1733235586333,21.11989035,219.17,219.03,4.86]
[1733235586530,23.40159035,219.13,219.06,2.2823]
[1733235586831,21.11989035,219.13,219.03,4.86]
[1733235587229,21.11989035,219.13,219.02,2.8017]
[1733235587837,21.11989035,219.13,218.98,2.5812]
[1733235588030,21.11989035,219.13,218.99,2.5981]
[1733235588230,2.2817,219.12,219.06,2.2823]
[1733235588426,21.11989035,219.13,218.99,2.5981]
[1733235589135,2.7734,219.15,219.1,2.2819]
[1733235589339,2.7734,219.15,218.99,2.5981]
[1733235590232,2.7734,219.15,219.09,2.282]
[1733235590440,2.7734,219.15,218.99,2.5981]
[1733235590835,2.2815,219.14,218.99,2.5981]
[1733235591438,5.0548,219.15,219.09,2.282]
[1733235591832,2.7734,219.15,219.09,2.282]
[1733235592034,2.7734,219.15,219.07,2.2822]
[1733235592237,2.7734,219.15,218.99,2.5981]
[1733235592632,2.2815,219.14,219.08,2.282]
[1733235592837,100.0,219.0,218.99,2.5981]
[1733235593039,31.89031516,219.0,218.99,2.5981]
[1733235593239,27.59371516,219.0,218.99,26.00099035]
[1733235593739,20.98931516,219.0,218.99,26.00099035]
[1733235594541,20.98931516,219.0,218.99,2.283]
[1733235596241,20.98931516,219.0,218.99,7.143]
[1733235596642,20.98931516,219.0,218.99,2.283]
[1733235597645,2.5949,219.2,218.98,25.97989035]
[1733235598143,2.2814,219.16,218.98,25.97989035]
[1733235598338,2.5949,219.2,218.99,4.5661]
[1733235598535,2.2813,219.16,218.99,4.5661]
[1733235598744,2.5949,219.2,218.98,25.97989035]
[1733235598939,2.5949,219.2,219.07,2.2822]
[1733235599139,2.5949,219.2,218.98,25.97989035]
[1733235599340,21.11989035,219.14,219.05,2.2823]
[1733235599541,21.11989035,219.14,218.98,25.97989035]
[1733235599941,21.11989035,219.14,218.98,4.86]
[1733235600242,2.5949,219.2,218.98,25.97989035]
[1733235600438,2.5949,219.2,219.14,2.2815]
[1733235600637,2.5949,219.2,218.99,4.566]
[1733235600846,2.2813,219.17,218.99,4.566]
[1733235601047,21.11989035,219.17,218.99,4.566]
[1733235601936,2.2814,219.15,218.99,4.566]
[1733235602141,2.5949,219.2,219.01,4.5656]
[1733235602349,2.5949,219.2,219.02,23.86829035]
[1733235602543,2.5949,219.2,219.02,2.7484]
[1733235602744,2.5949,219.2,219.09,2.2819]
[1733235602943,2.2814,219.15,219.02,2.7484]
[1733235603242,2.2814,219.15,219.09,2.2819]
[1733235603446,2.2815,219.14,219.09,2.2819]
[1733235603642,2.2815,219.14,219.02,2.7484]
[1733235603845,21.11989035,219.17,218.98,25.97989035]
[1733235604143,2.5949,219.2,219.02,21.11989035]
[1733235604341,21.11989035,219.17,219.0,4.5658]
[1733235604845,21.11989035,219.17,219.11,2.2817]
[1733235605040,2.5949,219.2,219.02,21.11989035]
[1733235605245,2.5949,219.2,219.04,4.5651]
[1733235605438,2.5949,219.2,219.06,21.11989035]
[1733235605648,2.5949,219.2,219.07,4.86]
[1733235605850,21.11989035,219.29,219.1,21.11989035]
[1733235606044,23.89379035,219.29,219.11,2.6442]
[1733235606742,2.7739,219.29,219.25,2.2802]
[1733235606942,2.7739,219.29,219.2,4.86]
[1733235607143,2.7739,219.29,219.26,2.2802]
[1733235607340,2.7739,219.29,219.2,4.86]
[1733235607643,23.39869035,219.41,219.32,2.2796]
[1733235607847,2.8331,219.4,219.23,2.7199]
[1733235608848,21.11989035,219.37,219.23,2.7199]
[1733235609352,21.11989035,219.33,219.18,4.86]
[1733235609747,2.837,219.36,219.18,25.97989035]
[1733235610251,2.2794,219.34,219.25,2.2803]
[1733235610451,2.837,219.36,219.18,25.97989035]
[1733235610656,2.837,219.36,219.18,4.86]
[1733235610860,21.11989035,219.29,219.14,2.8292]
[1733235611048,5.4993,219.28,219.11,4.86]
[1733235611248,5.4993,219.28,219.11,25.97989035]
[1733235611445,2.837,219.36,219.11,25.97989035]
[1733235611649,21.11989035,219.33,219.11,25.97989035]
[1733235611849,2.2801,219.27,219.19,2.2809]
[1733235612050,2.2801,219.27,219.08,2.6273]
[1733235612051,21.11989035,219.25,219.08,2.6273]
[1733235612250,21.11989035,219.25,219.09,4.86]
[1733235612555,5.405,219.24,219.09,4.86]
[1733235612848,21.11989035,219.21,219.03,7.4873]
[1733235613254,21.11989035,219.21,218.94,2.7517]
[1733235613255,21.11989035,219.17,218.94,2.7517]
[1733235613452,21.11989035,219.17,218.96,21.11989035]
[1733235613655,21.11989035,219.17,218.97,4.86]
[1733235613955,21.11989035,219.21,218.97,4.86]
[1733235613956,21.11989035,219.13,219.01,2.2827]
[1733235614157,21.11989035,219.09,218.95,2.6273]
[1733235614348,21.11989035,219.09,218.94,4.86]
[1733235614349,2.5979,219.08,218.94,4.86]
[1733235614658,5.2944,219.08,218.94,4.86]
[1733235615159,21.11989035,219.07,218.84,8.2476]
[1733235615451,21.11989035,219.03,218.9,1.61929]
[1733235616056,2.2833,218.97,218.9,1.61929]
[1733235616252,21.11989035,218.99,218.9,1.61929]
[1733235616452,21.11989035,218.95,218.78,21.11989035]
[1733235616654,2.75,218.98,218.78,21.11989035]
[1733235616854,2.75,218.98,218.79,4.84]
[1733235617250,21.11989035,218.95,218.83,2.2846]
[1733235617458,2.7243,218.94,218.79,4.84]
[1733235618260,2.7243,218.94,218.82,21.11989035]
[1733235618760,21.11989035,219.09,218.9,21.11989035]
[1733235618962,2.7552,219.07,218.9,21.11989035]
[1733235619157,2.7552,219.07,218.99,2.283]
[1733235619457,21.11989035,219.13,218.94,25.95989035]
[1733235619656,21.11989035,219.13,218.95,4.84]
[1733235619855,2.7552,219.15,218.98,21.11989035]
[1733235620057,2.7552,219.15,219.02,21.11989035]
[1733235620268,21.11989035,219.23,219.06,21.11989035]
[1733235620559,5.489,219.33,219.14,21.11989035]
[1733235620754,2.7552,219.33,219.15,2.6655]
[1733235620961,2.7552,219.33,219.16,4.84]
[1733235621658,37.0532044,219.33,219.16,4.84]
[1733235621852,296.40605381,219.34,219.16,4.84]
[1733235621853,296.40605381,219.34,219.17,34.2980044]
[1733235622057,296.40605381,219.34,219.21,34.2980044]
[1733235623362,296.40605381,219.34,219.25,34.2980044]
[1733235623657,296.40605381,219.34,219.26,4.84]
[1733235623863,296.40605381,219.34,219.32,2.2795]
[1733235624056,277.89715381,219.34,219.33,34.2980044]
[1733235624261,2.763,219.47,219.33,34.2980044]
[1733235624457,2.7124,219.55,219.39,34.2980044]
[1733235624659,2.7124,219.55,219.4,4.84]
[1733235624860,2.7124,219.55,219.44,2.2783]
[1733235625061,2.7124,219.55,219.4,4.84]
[1733235625461,36.9061044,219.61,219.46,2.278]
[1733235626263,36.9061044,219.61,219.43,2.2784]
[1733235626264,34.2980044,219.57,219.43,2.2784]
[1733235626462,34.2980044,219.57,219.4,4.84]
[1733235626758,34.2980044,219.57,219.44,2.2783]
[1733235626961,2.6081,219.61,219.4,4.84]
[1733235626962,2.6081,219.61,219.43,34.2980044]
[1733235627163,2.6081,219.61,219.47,34.2980044]
[1733235627463,198.44361773,219.48,219.47,34.2980044]
[1733235627658,2.6081,219.61,219.47,34.2980044]
[1733235627860,2.6081,219.61,219.55,2.2771]
[1733235628058,2.6081,219.61,219.56,4.84]
[1733235628263,2.8393,219.64,219.56,4.84]
[1733235628459,367.86335772,219.65,219.56,4.84]
[1733235628666,367.86335772,219.65,219.59,34.2980044]
[1733235629261,367.86335772,219.65,219.6,4.84]
[1733235629561,39.3218044,219.75,219.61,185.33556226]
[1733235629755,34.2980044,219.71,219.61,185.33556226]
[1733235630056,2.2762,219.65,219.51,4.84]
[1733235630262,2.2762,219.65,219.45,34.2980044]
[1733235630263,34.2980044,219.59,219.45,4.84]
[1733235630466,34.2980044,219.55,219.39,5.97893981]
[1733235630662,2.6327,219.54,219.39,5.97893981]
[1733235630866,2.6327,219.54,219.42,34.2980044]
[1733235631163,2.6327,219.54,219.39,5.97893981]
[1733235631367,2.6327,219.54,219.43,2.2784]
[1733235631663,2.6327,219.54,219.39,5.97893981]
[1733235631861,2.6327,219.54,219.42,2.2785]
[1733235632164,2.6327,219.54,219.41,4.84]
[1733235632356,2.6327,219.54,219.41,7.1186]
[1733235632561,2.6327,219.54,219.41,4.84]
[1733235632762,2.6327,219.54,219.34,34.2980044]
[1733235632961,2.6327,219.54,219.38,34.2980044]
[1733235633859,2.6327,219.54,219.42,34.2980044]
[1733235634066,2.6555,219.66,219.5,34.2980044]
[1733235634265,2.6555,219.66,219.54,34.2980044]
[1733235634666,2.7827,219.7,219.58,34.2980044]
[1733235635162,2.6555,219.8,219.66,34.2980044]
[1733235635357,2.6559,219.87,219.56,34.2980044]
[1733235635560,2.6559,219.87,219.67,2.2759]
[1733235635861,2.6559,219.87,219.65,4.84]
[1733235635862,34.2980044,219.76,219.65,4.84]
[1733235636061,34.2980044,219.76,219.62,4.84]
[1733235636263,34.2980044,219.76,219.65,2.2761]
[1733235636563,34.2980044,219.72,219.62,4.84]
[1733235636963,5.3603,219.71,219.62,4.84]
[1733235637168,2.5951,219.75,219.62,4.84]
[1733235637373,34.2980044,219.84,219.64,34.2980044]
[1733235637662,5.3603,219.85,219.62,4.84]
[1733235637865,34.2980044,219.8,219.62,4.84]
[1733235638167,36.5726044,219.8,219.65,2.2761]
[1733235638370,34.2980044,219.8,219.6,34.2980044]
[1733235638565,34.2980044,219.8,219.61,4.84]
[1733235638763,10.2003,219.85,219.61,4.84]
[1733235638764,34.2980044,219.76,219.61,4.84]
[1733235639069,34.2980044,219.72,219.61,4.84]
[1733235639263,2.7044,219.71,219.61,4.84]
[1733235639861,2.7044,219.71,219.53,47.42]
[1733235640063,34.2980044,219.66,219.52,4.82]
[1733235640271,5.3578,219.7,219.29,2.32516862]
[1733235640467,34.2980044,219.68,219.47,4.82]
[1733235640671,5.3578,219.7,219.47,4.82]
[1733235640672,34.2980044,219.64,219.47,4.82]
[1733235640974,34.2980044,219.64,219.49,2.2777]
[1733235641169,34.2980044,219.67,219.47,4.82]
[1733235641170,34.2980044,219.6,219.47,4.82]
[1733235641466,34.2980044,219.56,219.47,4.82]
[1733235641668,5.3641,219.55,219.41,4.82]
[1733235641873,34.2980044,219.52,219.38,4.82]
[1733235642573,34.2980044,219.48,219.32,52.22]
[1733235642868,36.5760044,219.48,219.34,2.2793]
[1733235643074,34.2980044,219.48,219.32,52.22]
[1733235643469,34.2980044,219.44,219.3,4.82]
[1733235645070,34.2980044,219.48,219.38,2.2789]
[1733235645273,34.2980044,219.48,219.3,4.82]
[1733235645572,34.2980044,219.52,219.44,2.2783]
[1733235645774,34.2980044,219.52,219.23,34.2980044]
[1733235645775,2.7377,219.54,219.42,4.84]
[1733235646077,5.3641,219.55,219.43,4.84]
[1733235647173,34.2980044,219.64,219.43,4.84]
[1733235647570,34.2980044,219.6,219.43,4.84]
[1733235647769,36.5755044,219.52,219.4,2.2787]
[1733235647968,36.5755044,219.52,219.36,4.82]
[1733235647969,2.7086,219.51,219.36,4.82]
[1733235648370,34.2980044,219.49,219.36,4.82]
[1733235648576,34.2980044,219.45,219.27,34.2980044]
[1733235648768,34.2980044,219.45,219.23,34.2980044]
[1733235649069,34.2980044,219.41,219.23,34.2980044]
[1733235649270,34.2980044,219.41,219.24,4.82]
[1733235649471,34.2980044,219.37,219.24,4.82]
[1733235649970,34.2980044,219.35,219.16,4.82]
[1733235650172,34.2980044,219.27,219.1,4.82]
[1733235650471,2.2802,219.26,219.14,2.2814]
[1733235650671,34.2980044,219.27,219.07,34.2980044]
[1733235650873,2.6487,219.25,219.08,4.82]
[1733235651370,2.6487,219.25,219.0,4.82]
[1733235651371,34.2980044,219.2,219.0,4.82]
[1733235651675,34.2980044,219.23,219.0,7.1029]
[1733235651676,34.2980044,219.16,219.0,7.1029]
[1733235651872,34.2980044,219.16,218.94,34.2980044]
[1733235652076,2.2817,219.12,218.98,2.2831]
[1733235652374,34.2980044,219.12,218.94,34.2980044]
[1733235652572,34.2980044,219.12,218.95,4.82]
[1733235653473,34.2980044,219.16,218.95,4.82]
[1733235653777,34.2980044,219.16,218.98,34.2980044]
[1733235655072,34.2980044,219.16,218.98,4.82]
[1733235655276,34.2980044,219.12,218.98,4.82]
[1733235655476,2.2818,219.11,218.99,2.2829]
[1733235655970,7.4595,219.19,218.98,4.82]
[1733235655971,2.2814,219.15,218.98,4.82]
[1733235656173,34.2980044,219.16,218.98,4.82]
[1733235656372,13.57,219.18,218.98,4.82]
[1733235656373,2.6395,219.19,219.02,34.2980044]
[1733235656567,36.9375044,219.19,218.98,4.82]
[1733235656876,34.2980044,219.15,218.98,4.82]
[1733235657275,36.9375044,219.19,218.98,4.82]
[1733235657777,2.6659,219.34,219.09,34.2980044]
[1733235657971,34.2980044,219.26,218.91,47.46]
[1733235658170,34.2980044,219.14,218.94,34.2980044]
[1733235658375,2.7839,219.13,218.95,4.82]
[1733235658574,2.7839,219.13,219.0,2.2829]
[1733235658975,2.7839,219.13,218.95,4.82]
[1733235659172,34.2980044,219.1,218.91,47.46]
[1733235659373,2.5846,219.09,218.92,4.82]
[1733235659573,4.8666,219.09,218.96,2.2833]
[1733235659778,2.5846,219.09,218.92,39.1180044]
[1733235660176,38.8545044,219.45,219.04,34.2980044]
[1733235660370,38.8545044,219.45,219.05,4.82]
[1733235660371,34.2980044,219.28,219.05,4.82]
[1733235660680,34.2980044,219.28,219.08,34.2980044]
[1733235661571,34.2980044,219.28,219.04,34.2980044]
[1733235661772,5.2579,219.3,219.0,34.2980044]
[1733235661773,34.2980044,219.2,219.0,34.2980044]
[1733235661977,5.2579,219.3,218.97,4.82]
[1733235661978,34.2980044,219.16,218.97,4.82]
[1733235662172,39.1180044,219.23,219.0,34.2980044]
[1733235662374,34.2980044,219.23,219.0,34.2980044]
[1733235662576,34.2980044,219.23,219.04,34.2980044]
[1733235663075,34.2980044,219.27,219.08,34.2980044]
[1733235663276,5.2579,219.3,219.17,34.2980044]
[1733235663481,5.2579,219.3,219.18,4.82]
[1733235664074,34.2980044,219.24,219.05,34.2980044]
[1733235664278,5.2579,219.3,218.97,34.2980044]
[1733235664279,34.2980044,219.16,218.97,34.2980044]
[1733235664473,34.2980044,219.12,218.96,41.52857539]
[1733235664673,2.282,219.09,218.99,2.283]
[1733235664895,8.2836,219.15,218.97,4.82]
[1733235665082,8.2836,219.15,218.96,41.52857539]
[1733235665381,8.2836,219.15,218.98,4.82]
[1733235665581,34.2980044,219.12,218.98,4.82]
[1733235665981,34.2980044,219.12,218.96,41.52857539]
[1733235666180,4.5586,219.36,218.97,39.1180044]
[1733235666373,34.2980044,219.19,218.97,39.1180044]
[1733235666577,34.2980044,219.19,219.01,34.2980044]
[1733235666779,5.5215,219.25,219.05,34.2980044]
[1733235666974,5.5215,219.25,219.09,34.2980044]
[1733235667673,34.2980044,219.22,219.02,4.82]
[1733235667874,13.57,219.16,219.02,4.82]
[1733235668076,34.2980044,219.18,219.02,4.82]
[1733235668279,34.2980044,219.15,218.97,34.2980044]
[1733235668582,34.2980044,219.15,219.0,4.82]
[1733235668781,34.2980044,219.22,219.01,34.2980044]
[1733235669178,5.5215,219.25,219.05,34.2980044]
[1733235669779,34.2980044,219.22,219.01,34.2980044]
[1733235669983,2.281,219.19,219.01,34.2980044]
[1733235670174,34.2980044,219.22,219.01,34.2980044]
[1733235670982,34.2980044,219.22,219.08,2.2821]
[1733235671179,47.8680044,219.22,219.01,34.2980044]
[1733235671377,34.2980044,219.18,219.04,4.82]
[1733235671580,34.2980044,219.18,219.02,2.2827]
[1733235671581,2.2816,219.13,219.02,2.2827]
[1733235671783,2.8029,219.12,218.93,81.7980044]
[1733235671985,2.7683,219.11,218.97,4.82]
[1733235672191,34.2980044,219.1,218.97,4.82]
[1733235672384,2.7683,219.11,218.97,4.82]
[1733235672385,34.2980044,219.06,218.97,4.82]
[1733235672686,2.2824,219.06,218.97,4.82]
[1733235672987,2.7683,219.11,218.97,4.82]
[1733235673182,2.2825,219.05,218.97,4.82]
[1733235673383,34.2980044,219.03,218.84,34.2980044]
[1733235673578,34.2980044,219.03,218.85,4.82]
[1733235673788,2.2823,219.06,218.88,34.2980044]
[1733235674082,2.7683,219.11,218.88,34.2980044]
[1733235674288,2.7683,219.11,219.0,2.2829]
[1733235674289,2.2819,219.1,219.0,2.2829]
[1733235674490,2.7683,219.11,218.88,34.2980044]
[1733235674686,2.7683,219.11,218.89,4.82]
[1733235674892,2.7683,219.11,218.92,34.2980044]
[1733235675188,2.7683,219.11,218.96,34.2980044]
[1733235675391,2.7683,219.11,218.92,34.2980044]
[1733235675582,2.7683,219.11,218.93,4.82]
[1733235675786,34.2980044,219.08,218.93,4.82]
[1733235675989,34.2980044,219.04,218.85,4.9]
[1733235676184,34.2980044,219.0,218.8,34.2980044]
[1733235676384,2.2836,218.94,218.84,2.2846]
[1733235676582,2.7536,218.99,218.8,39.1980044]
[1733235677392,2.2834,218.96,218.87,2.2843]
[1733235677589,2.2834,218.96,218.8,39.1980044]
[1733235677590,5.4778,218.99,218.84,4.9]
[1733235678187,13.57,219.16,218.88,34.2980044]
[1733235678489,2.2819,219.1,218.99,2.283]
[1733235678683,72.79794133,219.31,219.0,39.2180044]
[1733235678885,2.7536,219.24,219.08,34.2980044]
[1733235679085,34.2980044,219.23,218.91,6.16892624]
[1733235679286,34.2980044,219.19,218.96,34.2980044]
[1733235679491,47.8680044,219.23,219.0,34.2980044]
[1733235679785,34.2980044,219.23,219.0,34.2980044]
[1733235679985,34.2980044,219.23,219.01,4.92]
[1733235680191,34.2980044,219.13,219.01,4.92]
[1733235680390,16.2718,219.12,219.01,4.92]
[1733235680587,18.9465,219.12,219.01,4.92]
[1733235680784,13.57,219.09,218.9,34.2980044]
[1733235680985,5.3765,219.12,218.91,4.9]
[1733235681189,5.3765,219.12,218.98,34.2980044]
[1733235681887,4.5555,219.51,219.06,34.2980044]
[1733235682091,34.2980044,219.38,219.18,34.2980044]
[1733235682285,13.57,219.42,219.23,34.2980044]
[1733235682490,13.57,219.42,219.14,34.2980044]
[1733235682491,2.279,219.38,219.25,2.2803]
[1733235682692,34.2980044,219.35,219.14,34.2980044]
[1733235682893,2.7018,219.34,219.17,4.9]
[1733235683197,47.8680044,219.45,219.22,34.2980044]
[1733235683391,2.8548,219.38,219.22,34.2980044]
[1733235683696,2.6818,219.4,219.18,4.9]
[1733235683697,34.2980044,219.35,219.21,6.16892624]
[1733235683988,2.8548,219.37,219.14,40.46693064]
[1733235684192,2.8548,219.37,219.18,39.4380044]
[1733235684387,13.57,219.34,219.18,5.14]
[1733235684587,13.57,219.34,219.13,6.16892624]
[1733235684588,2.2806,219.23,219.13,6.16892624]
[1733235684887,2.2806,219.23,219.09,6.16892624]
[1733235684888,13.57,219.22,219.09,6.16892624]
[1733235685090,13.57,219.22,219.08,18.50677785]
[1733235685091,7.8173,219.22,219.08,2.2821]
[1733235685391,34.2980044,219.35,219.14,34.2980044]
[1733235685689,2.2806,219.23,219.09,5.14]
[1733235685887,34.2980044,219.27,219.09,5.14]
[1733235686290,2.2808,219.21,219.09,5.14]
[1733235686490,34.2980044,219.27,219.09,5.14]
[1733235686789,5.4498,219.33,219.09,5.14]
[1733235686790,2.2809,219.2,219.09,5.14]
[1733235686989,34.2980044,219.19,219.09,5.14]
[1733235687184,2.768,219.18,219.09,5.14]
[1733235687490,2.6856,219.19,219.09,5.14]
[1733235687694,34.2980044,219.28,219.09,39.4380044]
[1733235687890,2.2802,219.27,219.15,2.2813]
[1733235688191,5.4536,219.33,219.09,39.4380044]
[1733235688390,5.4536,219.33,219.13,34.2980044]
[1733235689097,2.2797,219.32,219.19,2.2809]
[1733235689490,5.4536,219.33,219.14,5.14]
[1733235689689,5.4536,219.33,219.18,2.281]
[1733235689893,5.4536,219.33,219.14,5.14]
[1733235690094,5.4536,219.33,219.22,2.2805]
[1733235690393,5.4536,219.33,219.17,5.14]
[1733235690693,39.7516044,219.33,219.16,5.14]
[1733235691192,34.2980044,219.21,219.08,5.14]
[1733235691393,5.4358,219.2,219.03,6.16892624]
[1733235691588,34.2980044,219.17,219.02,14.05129245]
[1733235691791,5.14,219.28,219.06,34.2980044]
[1733235691792,34.2980044,219.28,219.06,34.2980044]
[1733235692091,34.2980044,219.16,218.99,6.16892624]
[1733235692294,34.2980044,219.23,218.99,6.16892624]
[1733235692295,34.2980044,219.12,219.0,14.97075639]
[1733235692491,5.5915,219.11,219.0,5.38]
[1733235692795,34.2980044,219.45,219.0,5.38]
[1733235692997,34.2980044,219.19,219.0,5.38]
[1733235693188,5.5915,219.21,219.03,34.2980044]
[1733235693593,5.5915,219.21,218.9,34.2980044]
[1733235693594,34.2980044,219.31,219.11,34.2980044]
[1733235693891,5.5915,219.32,219.15,34.2980044]
[1733235694093,5.5915,219.32,219.16,5.38]
[1733235694294,5.5915,219.32,219.23,2.2805]
[1733235694498,8.1967,219.44,219.23,34.2980044]
[1733235694499,16.3867,219.44,219.23,34.2980044]
[1733235694794,34.2980044,219.32,219.16,5.38]
[1733235695400,2.28,219.29,219.16,7.6612]
[1733235695595,2.7811,219.31,219.16,5.38]
[1733235695795,13.57,219.3,219.16,5.38]
[1733235695991,16.3996,219.3,219.16,5.38]
[1733235696197,47.8680044,219.36,219.16,5.38]
[1733235696597,47.8680044,219.36,219.18,2.2811]
[1733235696598,2.2799,219.3,219.18,2.2811]
[1733235696795,34.2980044,219.28,219.07,34.2980044]
[1733235697097,2.2809,219.2,219.09,2.282]
[1733235697293,2.8296,219.29,219.03,5.38]
[1733235697495,2.8296,219.29,219.12,34.2980044]
[1733235697698,2.8296,219.29,219.13,5.38]
[1733235698002,34.2980044,219.25,219.13,5.38]
[1733235698201,34.2980044,219.25,218.89,10.73702624]
[1733235698202,13.57,219.24,218.93,1.14138806]
[1733235698402,34.2980044,219.25,218.94,9.51624137]
[1733235698594,34.2980044,219.21,219.01,34.2980044]
[1733235698798,34.2980044,219.25,219.05,34.2980044]
[1733235699003,34.2980044,219.25,219.06,5.62]
[1733235699196,2.6499,219.28,219.09,34.2980044]
[1733235699392,2.6499,219.28,219.01,34.2980044]
[1733235699393,34.2980044,219.25,219.05,34.2980044]
[1733235699601,34.2980044,219.25,219.06,5.62]
[1733235699895,2.2807,219.22,219.1,2.2818]
[1733235700097,2.6499,219.28,219.09,34.2980044]
[1733235700299,2.2804,219.25,219.15,2.2813]
[1733235700501,2.6499,219.28,219.09,34.2980044]
[1733235700798,2.6499,219.28,218.88,18.50677785]
[1733235700799,34.2980044,219.17,219.0,5.62]
[1733235701001,34.2980044,219.17,218.97,34.2980044]
[1733235701002,2.7225,219.16,219.01,5.62]
[1733235701198,2.7225,219.16,219.01,39.9180044]
[1733235701702,2.7352,219.15,219.01,5.62]
[1733235701893,2.7352,219.15,219.07,2.2822]
[1733235702097,2.7352,219.15,219.01,39.9180044]
[1733235702504,34.2980044,219.25,219.01,39.9180044]
[1733235703004,2.2809,219.2,219.08,2.2821]
[1733235703205,34.2980044,219.21,219.01,39.9180044]
[1733235703405,34.2980044,219.16,218.99,5.62]
[1733235703599,2.2816,219.13,218.99,5.62]
[1733235703799,2.6157,219.15,218.99,5.62]
[1733235704506,2.6157,219.15,218.95,34.2980044]
[1733235704704,34.2980044,219.12,218.95,5.62]
[1733235704907,2.8288,219.11,218.95,5.62]
[1733235705603,2.7227,219.14,218.98,34.2980044]
[1733235705903,2.8288,219.33,218.98,34.2980044]
[1733235706101,5.3384,219.14,218.98,34.2980044]
[1733235706304,2.2817,219.12,219.03,2.2826]
[1733235706501,5.3384,219.14,218.98,34.2980044]
[1733235706701,5.3384,219.14,219.02,34.2980044]
[1733235706905,34.2980044,219.45,219.02,34.2980044]
[1733235706906,34.2980044,219.24,219.02,34.2980044]
[1733235707103,34.2980044,219.2,219.02,34.2980044]
[1733235707297,5.4534,219.19,219.02,34.2980044]
[1733235707603,34.2980044,219.16,218.98,34.2980044]
[1733235708003,34.2980044,219.16,218.94,34.2980044]
[1733235708199,2.6219,219.18,218.95,5.64]
[1733235708200,34.2980044,219.12,218.95,5.64]
[1733235708405,34.2980044,219.16,218.95,5.64]
[1733235708603,34.2980044,219.16,219.03,2.2826]
[1733235708802,2.6219,219.18,218.98,34.2980044]
[1733235709308,2.6219,219.18,219.02,34.2980044]
[1733235709512,5.4534,219.19,219.02,34.2980044]
[1733235709804,19.0234,219.19,218.98,34.2980044]
[1733235710014,47.8680044,219.16,218.95,5.64]
[1733235710303,47.8680044,219.16,218.86,4.5688]
[1733235710304,13.57,219.11,218.97,2.2832]
[1733235710500,13.57,219.11,218.92,5.64]
[1733235710705,34.2980044,219.12,218.94,34.2980044]
[1733235711503,2.7483,219.15,218.98,34.2980044]